bitfinex/quotes_ETHUSD_20240820
["timestamp","ask_amount","ask_price","bid_price","bid_amount"]
[1724125054083,3.75292,2664.6,2664.0,3.75367]
[1724125054688,3.75292,2664.6,2664.1,0.30280956]
[1724125054892,3.7531,2664.5,2664.1,0.30280956]
[1724125055044,6.12177,2664.2,2664.1,0.30280956]
[1724125055247,6.12177,2664.2,2663.9,7.38]
[1724125055584,6.12177,2664.2,2664.0,0.30288671]
[1724125056777,6.12177,2664.2,2663.8,0.81175311]
[1724125057077,6.12177,2664.2,2664.1,0.30280956]
[1724125057288,6.12177,2664.2,2663.8,0.81178251]
[1724125057580,6.12177,2664.2,2663.7,3.7541]
[1724125057790,6.12177,2664.2,2663.9,0.30296386]
[1724125057993,6.12177,2664.2,2663.8,2.90819102]
[1724125058191,6.12177,2664.2,2664.0,0.30288671]
[1724125058366,6.12177,2664.2,2663.9,0.30296386]
[1724125058565,6.12177,2664.2,2663.8,2.60515]
[1724125058795,6.12177,2664.2,2664.0,0.30288671]
[1724125058966,6.12177,2664.2,2663.7,3.7541]
[1724125059287,6.12177,2664.2,2663.8,0.81199765]
[1724125059484,6.12177,2664.2,2663.7,7.472689]
[1724125059793,6.12177,2664.2,2663.8,1.11517832]
[1724125059956,6.12177,2664.2,2663.8,0.30313176]
[1724125072003,2.3683,2664.2,2663.8,4.05709176]
[1724125072336,2.3683,2664.2,2663.9,0.40570918]
[1724125072495,6.12177,2664.2,2663.9,0.40570918]
[1724125072700,6.12177,2664.2,2664.0,0.30297117]
[1724125073429,6.12177,2664.2,2663.8,3.75396]
[1724125073604,6.12177,2664.2,2664.1,0.30289402]
[1724125073801,6.12177,2664.2,2663.8,3.75396]
[1724125074120,6.12177,2664.2,2663.8,4.745516]
[1724125074508,6.12177,2664.2,2663.9,0.30304833]
[1724125079511,3.75278,2664.7,2663.9,0.30304833]
[1724125079512,9.9038,2664.0,2663.9,0.30304833]
[1724125079715,13.65755,2664.0,2663.9,0.30304833]
[1724125080040,2.3963,2663.2,2663.0,0.81305275]
[1724125080242,2.3963,2663.2,2663.1,0.81305275]
[1724125081019,2.3963,2663.2,2663.1,0.81316438]
[1724125081520,7.41818,2663.2,2663.1,0.81316438]
[1724125081822,7.41818,2663.2,2662.8,0.81316438]
[1724125082022,7.41818,2663.2,2662.9,0.81316438]
[1724125082238,7.41818,2663.2,2662.8,0.81318376]
[1724125082543,7.41818,2663.2,2662.8,1.02826294]
[1724125083319,7.41818,2663.2,2662.8,1.84144796]
[1724125084449,3.6633,2663.2,2662.8,1.02826294]
[1724125085048,2.3963,2663.2,2662.8,1.02826294]
[1724125085246,2.3963,2663.2,2662.8,4.78368294]
[1724125085706,2.3963,2663.2,2662.8,3.75542]
[1724125085907,2.3963,2663.2,2662.8,7.51078]
[1724125086147,2.3963,2663.2,2662.8,3.75536]
[1724125087047,2.3963,2663.2,2662.8,7.51072]
[1724125087234,2.3963,2663.2,2662.8,3.75536]
[1724125087435,2.3963,2663.2,2662.8,4.58777875]
[1724125087614,3.6633,2663.2,2662.8,4.58777875]
[1724125087816,3.6633,2663.2,2662.8,3.75536]
[1724125088658,3.6633,2663.2,2662.6,7.51125]
[1724125088809,7.41825,2663.2,2662.7,3.75555]
[1724125089437,3.6633,2663.2,2662.7,3.75555]
[1724125092022,5.02194,2663.2,2662.7,3.75555]
[1724125092245,2.496,2663.1,2662.7,3.75555]
[1724125093562,2.496,2663.1,2662.7,4.506667]
[1724125095056,2.496,2663.1,2662.8,0.29452991]
[1724125095569,2.496,2663.1,2662.7,4.506667]
[1724125095735,2.496,2663.1,2662.9,0.29445269]
[1724125096134,2.496,2663.1,2662.7,3.75555]
[1724125096365,2.496,2663.1,2663.0,0.29437548]
[1724125096542,2.496,2663.1,2662.7,3.75555]
[1724125096762,2.496,2663.1,2663.0,0.29437548]
[1724125096938,2.496,2663.1,2662.7,3.75555]
[1724125097138,2.496,2663.1,2663.0,0.29437548]
[1724125097345,2.496,2663.1,2662.7,3.75555]
[1724125097668,2.3125,2663.3,2662.8,3.75531]
[1724125097882,2.3125,2663.3,2662.8,4.04990568]
[1724125098767,6.06725,2663.3,2662.8,4.04990568]
[1724125098999,2.3125,2663.1,2662.8,4.04990568]
[1724125101591,1.267,2663.0,2662.8,0.29459568]
[1724125101881,1.267,2663.0,2662.6,3.75563]
[1724125102082,1.267,2663.0,2662.9,0.29451846]
[1724125102231,1.267,2663.0,2662.6,3.75563]
[1724125102435,1.267,2663.0,2662.9,0.29451846]
[1724125102668,1.267,2663.0,2662.6,3.75563]
[1724125102887,1.267,2663.0,2662.9,0.29451846]
[1724125103091,1.267,2663.0,2662.6,3.75563]
[1724125103954,1.267,2663.0,2662.7,0.2946729]
[1724125107504,11.18368,2662.8,2662.7,0.2946729]
[1724125107854,14.18368,2662.8,2662.7,0.2946729]
[1724125108181,3.75637,2662.2,2661.7,7.38]
[1724125108494,1.267,2662.0,2661.6,3.75706]
[1724125109001,6.16236,2662.1,2661.6,3.75706]
[1724125109002,1.267,2661.8,2661.6,3.75706]
[1724125109191,1.267,2662.0,2661.6,3.75706]
[1724125109951,1.267,2662.0,2661.7,0.29553004]
[1724125110366,2.4689,2661.9,2661.7,0.29553004]
[1724125110868,2.4689,2661.9,2661.5,3.75723]
[1724125111069,2.4689,2661.9,2661.8,0.29545276]
[1724125112184,2.4689,2661.9,2661.5,3.75723]
[1724125112898,2.4689,2661.9,2661.6,0.29560733]
[1724125114274,1.267,2661.8,2661.6,0.29560733]
[1724125114465,2.4435,2661.7,2661.4,3.75731]
[1724125116304,2.4435,2661.7,2661.0,6.04062]
[1724125116305,2.2828,2661.5,2661.0,3.75786]
[1724125116515,2.2828,2661.5,2660.8,3.75817]
[1724125116516,1.267,2661.3,2660.8,3.75817]
[1724125116673,1.267,2661.3,2660.8,4.133987]
[1724125116873,2.2828,2661.4,2661.0,3.75784]
[1724125117270,2.2828,2661.8,2661.4,3.75738]
[1724125117471,2.2828,2661.8,2661.4,3.75736]
[1724125118190,2.2828,2661.8,2661.6,3.75706]
[1724125121683,2.2828,2661.8,2661.5,3.75725]
[1724125122019,3.75623,2662.3,2661.5,3.75725]
[1724125122020,2.3357,2662.2,2661.5,0.751461]
[1724125122224,5.3357,2662.2,2661.9,3.75671]
[1724125122512,2.3357,2662.2,2661.9,3.75671]
[1724125122713,2.3357,2662.2,2662.0,0.29635442]
[1724125123277,2.3357,2662.6,2662.0,0.29635442]
[1724125123482,2.3357,2662.6,2662.4,3.75591]
[1724125123822,3.6027,2663.0,2662.5,4.131381]
[1724125123998,2.3357,2663.0,2662.6,3.75572]
[1724125124395,2.3357,2663.0,2662.7,0.2957541]
[1724125124722,2.3357,2663.0,2662.8,3.75543]
[1724125124882,2.2645,2663.2,2662.8,4.05092507]
[1724125125804,2.2645,2663.2,2663.0,3.75516]
[1724125126216,2.2645,2663.2,2663.1,0.29526343]
[1724125126529,2.2645,2663.2,2662.8,3.75534]
[1724125126681,2.2645,2663.2,2663.1,0.29526343]
[1724125126883,2.2645,2663.2,2662.8,3.75534]
[1724125127091,2.2645,2663.2,2663.1,0.29514123]
[1724125127315,2.866414,2663.2,2662.7,3.75547]
[1724125127496,2.2645,2663.2,2663.1,0.29514123]
[1724125127698,2.2645,2663.2,2662.7,3.75547]
[1724125127897,2.2645,2663.2,2663.1,0.29514123]
[1724125128104,2.2645,2663.2,2662.8,3.75543]
[1724125128317,2.2645,2663.2,2663.1,0.29514123]
[1724125128518,2.2645,2663.2,2662.9,3.75526]
[1724125128703,2.2645,2663.2,2663.1,0.29514123]
[1724125129001,2.2645,2663.2,2662.8,3.75543]
[1724125129215,2.2645,2663.2,2662.8,7.51071]
[1724125129389,2.2645,2663.2,2662.9,0.29529565]
[1724125129825,2.2645,2663.2,2663.0,3.75513]
[1724125130204,2.2645,2663.2,2663.1,0.29467103]
[1724125131702,2.4179,2663.6,2663.2,3.75474]
[1724125132113,2.4179,2663.6,2663.3,0.29451663]
[1724125132314,2.4179,2663.6,2663.2,3.75474]
[1724125132501,2.4179,2663.6,2663.4,0.29443944]
[1724125132730,2.4179,2663.6,2663.2,3.75474]
[1724125132924,2.4179,2663.6,2663.5,0.2942902]
[1724125133230,2.4179,2663.6,2663.2,3.75474]
[1724125133431,2.4179,2663.6,2663.5,0.2942902]
[1724125133729,2.4179,2663.6,2663.5,0.29428707]
[1724125133934,2.4179,2663.6,2663.2,3.75474]
[1724125134132,2.4179,2663.6,2663.5,0.29428707]
[1724125134341,2.4179,2663.6,2663.2,3.75474]
[1724125134628,2.4179,2663.6,2663.5,0.29428707]
[1724125134831,3.035107,2663.6,2663.0,3.75503]
[1724125135029,2.4179,2663.6,2663.1,3.75493]
[1724125135425,2.4179,2663.6,2663.2,0.29449045]
[1724125137253,2.4179,2663.6,2663.2,4.04925045]
[1724125137901,3.75442,2663.6,2663.2,0.29449045]
[1724125138216,6.00878,2663.4,2662.9,3.7552]
[1724125138637,6.00877,2663.4,2663.0,0.29463546]
[1724125139300,9.76348,2663.4,2663.0,0.29463546]
[1724125139497,6.00877,2663.4,2663.0,0.29463546]
[1724125140363,2.2541,2663.4,2663.0,4.04978546]
[1724125140747,2.2541,2663.4,2663.0,4.83028401]
[1724125141050,6.00869,2663.4,2663.0,1.07513401]
[1724125141257,6.00869,2663.4,2663.0,0.29463546]
[1724125141568,2.2541,2663.4,2663.0,4.04978546]
[1724125141855,2.2541,2663.4,2663.1,3.75501]
[1724125142014,2.3304,2663.7,2663.2,3.75479]
[1724125142214,9.0846,2663.7,2663.3,0.29433804]
[1724125142419,9.0846,2663.7,2663.1,7.50985]
[1724125142616,3.75466,2663.4,2662.7,7.51094]
[1724125142823,6.08521,2663.3,2662.8,3.75543]
[1724125143042,3.7549,2663.2,2662.9,0.29464373]
[1724125143258,2.3304,2663.1,2662.7,3.75545]
[1724125143459,2.3304,2663.1,2663.0,0.29456652]
[1724125143664,2.3304,2663.1,2662.7,3.75545]
[1724125143820,2.3304,2663.1,2663.0,0.29456652]
[1724125144023,2.3304,2663.1,2662.7,3.75545]
[1724125144244,2.3304,2663.1,2662.8,0.29472095]
[1724125144524,2.3304,2663.1,2662.7,3.75545]
[1724125144759,2.3304,2663.1,2662.9,0.29464373]
[1724125144963,2.3304,2663.1,2662.8,0.29472095]
[1724125145130,2.3304,2663.1,2663.0,0.29456652]
[1724125145321,2.3304,2663.1,2662.7,3.75545]
[1724125145523,2.3304,2663.1,2663.0,0.29456652]
[1724125145735,2.3304,2663.1,2662.7,3.75545]
[1724125146248,2.3304,2663.1,2662.8,0.29472095]
[1724125146578,3.5994,2663.1,2662.7,3.75545]
[1724125146744,3.5994,2663.1,2662.9,0.29464373]
[1724125146949,3.5994,2663.1,2662.7,3.75545]
[1724125147123,3.5994,2663.1,2663.0,0.29456652]
[1724125147321,3.5994,2663.1,2662.7,3.75545]
[1724125147849,3.5994,2663.1,2662.8,0.29472095]
[1724125148052,3.5994,2663.1,2662.7,3.75545]
[1724125148229,3.5994,2663.1,2662.8,0.29472095]
[1724125148230,5.02442,2662.9,2662.8,0.29472095]
[1724125148426,5.02442,2662.9,2662.4,7.51192]
[1724125148427,3.5766,2662.9,2662.4,7.51192]
[1724125148736,3.5766,2662.9,2662.5,0.2950247]
[1724125149758,7.33192,2662.9,2662.5,0.2950247]
[1724125152433,3.5766,2662.9,2662.5,4.0508747]
[1724125152671,3.5766,2662.9,2662.5,5.20714817]
[1724125154070,7.33191,2662.9,2662.5,1.45129817]
[1724125154236,3.5766,2662.9,2662.5,1.45129817]
[1724125154437,3.5766,2662.9,2662.5,0.2950247]
[1724125154973,1.269,2662.7,2662.5,0.2950247]
[1724125155159,6.17502,2662.6,2662.5,0.2950247]
[1724125155364,6.17502,2662.6,2662.1,3.75633]
[1724125155694,5.02487,2662.5,2662.1,4.507629]
[1724125157585,5.02487,2662.5,2661.9,3.75666]
[1724125157586,2.4768,2662.4,2661.9,3.7566]
[1724125157743,2.4768,2662.2,2662.0,3.75656]
[1724125158864,2.4768,2662.2,2661.8,7.38]
[1724125158865,2.4768,2662.2,2661.9,3.75668]
[1724125159384,2.4768,2662.2,2661.9,5.32742371]
[1724125159678,2.4768,2662.2,2661.9,1.57074371]
[1724125160077,2.4768,2662.2,2661.8,11.13682]
[1724125160380,3.75284,2664.7,2664.1,3.7535]
[1724125160594,2.4768,2664.8,2664.4,5.02218]
[1724125160881,2.4768,2664.8,2664.3,1.269]
[1724125161050,2.4768,2664.8,2664.4,3.75305]
[1724125163187,2.4768,2664.8,2664.6,3.75289]
[1724125163345,2.4768,2664.8,2664.7,3.75276]
[1724125167197,2.4768,2664.8,2664.6,3.7528]
[1724125168208,2.4768,2664.8,2664.4,3.7531]
[1724125168392,6.47718,2664.8,2664.2,3.75337]
[1724125168701,2.4768,2664.8,2664.0,3.75371]
[1724125168895,2.4768,2664.8,2664.5,3.75294]
[1724125169867,2.4768,2664.8,2664.6,4.03589174]
[1724125170297,2.4768,2664.8,2664.6,0.28300174]
[1724125175605,2.4768,2664.8,2664.7,7.50552]
[1724125175805,2.2711,2665.3,2664.8,3.7525]
[1724125176180,5.2711,2665.3,2664.9,0.2827364]
[1724125178708,9.02304,2665.3,2665.0,0.2825789]
[1724125178872,9.02304,2665.3,2664.8,3.75261]
[1724125179073,0.902304,2665.2,2664.9,0.282656]
[1724125179297,0.902304,2665.2,2664.7,3.75267]
[1724125179298,3.902304,2665.2,2664.7,7.50534]
[1724125179609,3.902304,2665.2,2665.0,0.28257581]
[1724125179786,3.902304,2665.2,2664.7,7.50534]
[1724125179974,3.0,2665.2,2665.1,0.28249871]
[1724125180170,3.0,2665.2,2664.8,3.7526]
[1724125180371,3.0,2665.2,2665.1,0.28249871]
[1724125180573,3.0,2665.2,2664.8,3.7526]
[1724125180772,3.0,2665.2,2665.1,0.28249871]
[1724125180971,3.0,2665.2,2664.8,3.7526]
[1724125181168,3.0,2665.2,2665.1,0.28249871]
[1724125181411,3.0,2665.2,2664.8,3.7526]
[1724125181574,3.0,2665.2,2665.1,0.28239669]
[1724125181791,3.0,2665.2,2664.8,3.7526]
[1724125182023,3.0,2665.2,2665.1,0.28239669]
[1724125182195,3.0,2665.2,2664.8,3.7526]
[1724125182395,5.2711,2665.3,2665.1,0.28239669]
[1724125182626,5.2711,2665.3,2664.8,4.503127]
[1724125182831,5.2711,2665.3,2665.2,0.2823196]
[1724125183033,5.2711,2665.3,2664.8,4.503127]
[1724125183229,5.2711,2665.3,2665.2,0.2823196]
[1724125183735,5.2711,2665.3,2664.9,3.75244]
[1724125183919,5.2711,2665.3,2665.2,0.2823196]
[1724125184229,2.3247,2665.9,2664.9,0.8255637]
[1724125184402,3.75136,2665.7,2665.2,4.0343596]
[1724125184603,3.75136,2665.7,2664.9,3.7524]
[1724125184808,7.50281,2665.7,2665.3,0.28224252]
[1724125185008,7.50281,2665.7,2665.1,3.75219]
[1724125185210,3.75136,2665.7,2665.4,0.28216544]
[1724125185418,3.75136,2665.7,2664.9,7.50477]
[1724125185605,6.08288,2665.6,2665.5,0.28208838]
[1724125185814,3.75164,2665.5,2665.0,3.75232]
[1724125186034,3.75164,2665.5,2665.0,4.127552]
[1724125186221,3.75164,2665.5,2665.1,0.28239669]
[1724125186412,3.7518,2665.4,2665.1,0.28239669]
[1724125186614,3.7518,2665.4,2664.8,7.50503]
[1724125186828,3.75164,2665.5,2664.8,7.50503]
[1724125186829,3.75164,2665.5,2665.2,0.2823196]
[1724125187014,3.75164,2665.5,2664.9,3.75246]
[1724125187209,6.01588,2665.4,2665.3,0.28224252]
[1724125187509,2.2641,2665.1,2664.7,3.75274]
[1724125188096,2.2641,2665.1,2664.6,3.75281]
[1724125188334,3.75242,2665.0,2664.4,3.75309]
[1724125188534,3.75242,2665.0,2664.5,3.75297]
[1724125189201,6.01638,2665.1,2664.6,3.7529]
[1724125189402,2.2641,2665.1,2664.6,3.7529]
[1724125189637,2.2641,2665.1,2664.8,3.75259]
[1724125189796,2.2641,2665.1,2664.6,3.7529]
[1724125189797,2.2641,2665.1,2664.6,7.50568]
[1724125190002,2.2641,2665.1,2664.6,3.75278]
[1724125190232,2.2641,2665.1,2664.6,4.128058]
[1724125191239,2.2641,2665.1,2664.8,3.75261]
[1724125192041,2.2641,2665.1,2664.6,4.128058]
[1724125192536,2.2641,2665.1,2664.7,3.75274]
[1724125192736,5.2641,2665.1,2664.7,3.75274]
[1724125193344,5.2641,2665.1,2664.6,3.75278]
[1724125193862,9.01632,2665.1,2664.6,3.75278]
[1724125194360,5.2641,2665.1,2664.6,3.75278]
[1724125195167,5.2641,2665.1,2664.6,7.5056]
[1724125195451,5.2641,2665.1,2664.7,3.75272]
[1724125196043,5.2641,2665.1,2664.6,3.75278]
[1724125196404,9.0163,2665.1,2664.6,3.75278]
[1724125196856,5.2641,2665.1,2664.6,3.75278]
[1724125199293,5.2641,2665.1,2664.6,7.50561]
[1724125199692,5.2641,2665.1,2664.6,3.75278]
[1724125200017,5.2641,2665.1,2664.4,3.75311]
[1724125200018,3.75243,2665.0,2664.7,0.28256905]
[1724125200170,9.01643,2665.1,2664.7,0.28256905]
[1724125201471,5.2641,2665.1,2664.7,0.28256905]
[1724125201774,2.2641,2665.1,2664.7,0.28256905]
[1724125202290,2.2641,2665.1,2664.7,4.03532905]
[1724125202889,3.75241,2665.0,2664.7,0.28256905]
[1724125203203,7.293127,2665.1,2664.4,3.75308]
[1724125203405,6.01631,2665.1,2664.8,0.28249194]
[1724125203586,6.01631,2665.1,2664.6,3.7529]
[1724125203780,6.01631,2665.1,2664.9,0.28241483]
[1724125204094,9.76863,2665.1,2664.6,3.7529]
[1724125204282,6.01631,2665.1,2664.6,3.7529]
[1724125204487,6.01631,2665.1,2664.7,0.28256905]
[1724125205487,9.76859,2665.1,2664.7,0.28256905]
[1724125205688,6.01631,2665.1,2664.7,0.28256905]
[1724125206092,2.2641,2665.1,2664.7,4.03530905]
[1724125208701,6.01639,2665.1,2664.7,0.28256905]
[1724125209010,6.01639,2665.1,2664.6,3.75277]
[1724125209314,6.01639,2665.1,2664.7,4.03536162]
[1724125209315,2.2641,2665.1,2664.7,4.03536162]
[1724125209511,2.4668,2665.4,2664.9,3.75248]
[1724125209715,5.4668,2665.4,2665.1,3.75219]
[1724125210012,2.4668,2665.4,2665.1,3.75219]
[1724125210317,2.4668,2665.6,2665.2,4.0343936]
[1724125210703,2.4668,2665.6,2665.3,3.75188]
[1724125210907,3.75131,2665.8,2665.3,4.03411652]
[1724125211093,6.14889,2665.9,2665.3,4.03411652]
[1724125211292,7.200405,2665.9,2665.4,3.75173]
[1724125211609,3.75122,2665.8,2665.5,0.28212238]
[1724125212780,3.75122,2665.8,2665.2,7.5039]
[1724125212980,3.75122,2665.8,2665.6,0.28204531]
[1724125213200,3.75122,2665.8,2665.3,3.7519]
[1724125213397,3.75122,2665.8,2665.7,0.28196826]
[1724125213597,2.2944,2665.7,2665.1,3.7521]
[1724125213797,3.75152,2665.6,2665.1,3.7521]
[1724125214176,2.2944,2665.7,2665.2,3.75205]
[1724125214376,6.04579,2665.7,2665.2,3.75205]
[1724125214988,6.04579,2665.7,2665.3,0.28227652]
[1724125215198,7.57631085,2665.7,2665.3,0.28227652]
[1724125215720,3.82492085,2665.7,2665.3,4.03417652]
[1724125215911,7.57628085,2665.7,2665.3,0.28227652]
[1724125216625,11.32774085,2665.7,2665.3,0.28227652]
[1724125216799,7.57628085,2665.7,2665.3,0.28227652]
[1724125216985,1.05762808,2665.6,2665.3,0.28227652]
[1724125217187,3.75208,2665.2,2664.6,3.75281]
[1724125217426,2.3759,2665.1,2664.6,3.75281]
[1724125217746,2.3759,2665.1,2664.7,3.75268]
[1724125217893,2.3759,2665.1,2664.8,3.75259]
[1724125218097,2.3759,2665.1,2664.8,7.50514]
[1724125218393,6.12057,2665.4,2664.9,3.75234]
[1724125219111,2.3687,2665.4,2665.1,3.75219]
[1724125220828,2.3687,2665.4,2664.9,7.50487]
[1724125221125,3.76164881,2665.4,2664.9,3.7524]
[1724125221628,7.51344881,2665.4,2664.9,3.75239]
[1724125222287,6.1205,2665.4,2664.9,3.75239]
[1724125222488,2.3687,2665.4,2664.9,3.75239]
[1724125222991,2.3687,2665.4,2664.8,3.75257]
[1724125223416,2.3687,2665.4,2664.9,3.75236]
[1724125224101,2.3687,2665.4,2665.0,3.75233]
[1724125224297,2.3687,2665.4,2664.5,6.18431]
[1724125224298,6.12051,2665.4,2664.9,3.75247]
[1724125225842,2.3687,2665.4,2664.9,3.75238]
[1724125226130,2.3687,2665.4,2665.0,3.75224]
[1724125227886,2.3687,2665.4,2665.1,7.50431]
[1724125228106,2.3687,2665.4,2665.1,3.75212]
[1724125229041,2.3687,2665.4,2665.0,3.75233]
[1724125229236,3.280734,2665.4,2665.0,3.75233]
[1724125229476,3.280734,2665.4,2664.7,11.13266]
[1724125229477,3.75206,2665.2,2664.7,11.13266]
[1724125229655,2.4812,2665.1,2664.7,7.38]
[1724125229852,2.4812,2665.1,2664.7,11.13275]
[1724125230059,2.4812,2665.1,2664.8,0.28242026]
[1724125230455,2.4812,2665.1,2664.7,11.13267]
[1724125230651,2.4812,2665.1,2664.9,0.28238334]
[1724125230944,2.4812,2665.1,2665.0,0.28230625]
[1724125231241,2.4812,2665.1,2664.9,3.75247]
[1724125231442,2.4812,2665.1,2665.0,0.28230625]
[1724125232444,3.75179,2665.4,2665.0,0.28230625]
[1724125232776,2.357,2665.4,2665.0,4.03457625]
[1724125232983,6.1088,2665.4,2665.0,0.28230625]
[1724125233145,7.52158,2665.4,2665.0,0.28230625]
[1724125233953,2.357,2665.4,2665.0,4.03455625]
[1724125234154,3.624,2665.4,2665.0,4.03455625]
[1724125234744,3.624,2665.4,2665.1,3.75214]
[1724125234950,2.357,2665.4,2665.1,4.07296218]
[1724125235991,5.01858,2665.6,2665.2,3.75205]
[1724125235992,3.5493,2665.6,2665.2,3.75205]
[1724125236149,7.30083,2665.6,2665.2,4.07279364]
[1724125236650,7.30083,2665.6,2665.2,0.32074364]
[1724125237465,11.05243,2665.6,2665.2,0.32074364]
[1724125237659,12.157653,2665.6,2665.2,0.32074364]
[1724125238261,7.30083,2665.6,2665.2,0.32074364]
[1724125244571,1.267,2665.4,2665.2,0.32074364]
[1724125244894,3.75175,2665.5,2665.0,3.75225]
[1724125245096,3.75175,2665.5,2665.3,0.32065585]
[1724125245392,3.75175,2665.5,2665.4,0.32057733]
[1724125245694,3.75175,2665.5,2665.0,3.75225]
[1724125246065,3.75175,2665.5,2665.1,0.32081291]
[1724125247201,7.50347,2665.5,2665.1,0.32081291]
[1724125247495,7.50345,2665.5,2665.1,0.32081291]
[1724125248199,3.75172,2665.5,2665.1,0.32081291]
[1724125251364,3.75206,2665.2,2665.1,0.32081291]
[1724125251564,3.75206,2665.2,2664.8,3.75252]
[1724125251777,3.75206,2665.2,2664.9,0.32097616]
[1724125253890,3.75206,2665.2,2664.7,3.75271]
[1724125254222,3.75206,2665.2,2665.0,0.32094089]
[1724125254419,3.75206,2665.2,2664.7,3.75271]
[1724125254608,3.75206,2665.2,2665.1,0.32086235]
[1724125254916,4.878151,2665.2,2664.7,3.75271]
[1724125255079,3.75206,2665.2,2665.1,0.32086235]
[1724125255281,3.75206,2665.2,2664.8,3.75262]
[1724125255507,3.75206,2665.2,2665.1,0.32086235]
[1724125256212,3.75206,2665.2,2664.8,3.75262]
[1724125256408,3.75206,2665.2,2664.9,0.32101944]
[1724125257029,3.75206,2665.2,2664.7,3.75276]
[1724125257213,3.75206,2665.2,2664.8,0.32110417]
[1724125257383,3.75206,2665.2,2664.8,3.75261]
[1724125257584,3.75206,2665.2,2664.9,0.32102562]
[1724125260896,3.75193,2665.3,2664.9,0.32102562]
[1724125262693,4.9885345,2665.3,2664.9,0.32102562]
[1724125263801,3.7521,2665.2,2664.9,0.32102562]
[1724125264110,5.0191,2665.2,2664.9,0.32102562]
[1724125264337,1.267,2665.2,2664.9,0.32102562]
[1724125267403,3.75193,2665.3,2664.9,0.32102562]
[1724125268340,5.01908,2665.2,2664.9,0.32102562]
[1724125268626,2.2649,2665.1,2664.8,3.75261]
[1724125268833,2.2649,2665.1,2664.9,0.32108436]
[1724125271219,2.2259,2665.1,2664.9,0.32108436]
[1724125272031,5.01934,2665.0,2664.3,11.13332]
[1724125272199,1.267,2664.8,2664.4,0.32151122]
[1724125272402,1.267,2664.8,2664.4,4.07466122]
[1724125272960,5.01934,2665.0,2664.5,3.75304]
[1724125273238,5.01934,2665.0,2664.6,0.32135407]
[1724125273399,8.77177,2665.0,2664.6,0.32135407]
[1724125273597,5.01934,2665.0,2664.6,0.32135407]
[1724125274136,8.77178,2665.0,2664.6,0.32135407]
[1724125274732,5.01934,2665.0,2664.6,0.32135407]
[1724125275236,2.2259,2665.1,2664.7,3.75273]
[1724125275441,5.2259,2665.1,2664.7,3.75273]
[1724125275600,5.2259,2665.1,2664.8,0.32126498]
[1724125275815,5.2259,2665.1,2664.7,3.75273]
[1724125276035,8.97817,2665.1,2664.8,0.32125261]
[1724125276357,8.97817,2665.1,2664.6,3.7529]
[1724125276529,8.97817,2665.1,2664.9,0.32117406]
[1724125276853,8.97817,2665.1,2665.0,0.32109551]
[1724125277038,8.97817,2665.1,2664.6,3.7529]
[1724125277221,8.97817,2665.1,2664.7,0.32133117]
[1724125277638,5.01937,2665.0,2664.7,0.32133117]
[1724125277845,5.01937,2665.0,2664.5,3.75298]
[1724125278161,5.01937,2665.0,2664.6,0.32140973]
[1724125278824,2.3852,2664.7,2664.6,0.32140973]
[1724125279013,2.3852,2664.9,2664.4,7.50619]
[1724125279216,2.3852,2664.9,2664.5,4.0745183]
[1724125280836,3.75237,2665.0,2664.5,7.8274383]
[1724125281063,3.75237,2665.0,2664.5,4.0744083]
[1724125281930,5.4039,2665.1,2664.6,2.4428]
[1724125282120,6.02502,2665.3,2664.7,3.75269]
[1724125282319,6.02502,2665.3,2664.8,4.372099]
[1724125282721,6.02502,2665.3,2664.9,0.32118642]
[1724125282920,3.75206,2665.2,2664.9,0.32118642]
[1724125283419,8.77119,2665.2,2664.9,0.32118642]
[1724125283653,3.75221,2665.1,2665.0,0.32110788]
[1724125283953,3.75227,2665.1,2664.5,7.50592]
[1724125284125,3.75227,2665.1,2665.0,0.32110788]
[1724125284458,5.01906,2665.2,2664.7,3.75269]
[1724125284647,5.01906,2665.2,2665.0,0.32110167]
[1724125284841,5.01906,2665.2,2664.7,3.75269]
[1724125285048,5.01906,2665.2,2664.8,0.32126186]
[1724125285255,5.01906,2665.2,2664.7,3.75269]
[1724125285458,5.01906,2665.2,2664.8,0.32126186]
[1724125285962,5.01906,2665.2,2664.9,0.32118331]
[1724125286267,5.01906,2665.2,2664.7,3.75269]
[1724125286557,5.01906,2665.2,2664.8,0.32124949]
[1724125287055,5.01906,2665.2,2664.7,3.75269]
[1724125287243,5.01906,2665.2,2664.9,0.32117094]
[1724125287448,5.01906,2665.2,2665.0,0.3210924]
[1724125287643,8.77124,2665.2,2665.0,0.3210924]
[1724125287852,6.09310016,2665.2,2665.1,0.32101385]
[1724125288036,5.01906,2665.2,2664.7,3.75269]
[1724125288355,3.75229,2665.1,2664.8,0.32124949]
[1724125288557,3.75235,2665.0,2664.8,0.32124949]
[1724125288783,3.75229,2665.1,2664.6,3.75288]
[1724125288935,3.75229,2665.1,2664.9,0.32117094]
[1724125289140,3.75229,2665.1,2664.6,3.75288]
[1724125289961,3.75229,2665.1,2664.7,0.32132805]
[1724125291230,3.75179,2665.4,2664.9,3.75239]
[1724125291467,3.75194,2665.3,2665.0,0.32110476]
[1724125291765,2.2566,2665.2,2665.0,0.32110476]
[1724125293755,6.0087,2665.2,2664.7,7.50544]
[1724125293963,2.2566,2665.2,2665.1,0.32102622]
[1724125294155,2.2566,2665.2,2664.8,3.75261]
[1724125294466,2.2566,2665.2,2664.7,3.75269]
[1724125294787,3.75241,2665.0,2664.8,0.32126186]
[1724125295271,3.75241,2665.0,2664.5,3.75303]
[1724125295272,3.75241,2665.0,2664.9,0.32115548]
[1724125295473,5.01941,2665.0,2664.5,3.75303]
[1724125295775,3.75263,2664.8,2664.6,0.32139116]
[1724125295934,1.267,2664.8,2664.6,0.32139116]
[1724125296127,1.267,2664.8,2664.4,5.486999]